lending/lending_fUSD_20250409
["ID","MTS","AMOUNT","RATE_DAILY","PERIOD"]
[357582374,1744195894443,-500.0,0.00055342,120]
[357582375,1744195894452,-500.0,0.00055342,120]
[357582376,1744195894461,-500.0,0.00055342,120]
[357582377,1744195894471,-500.0,0.00055342,120]
[357582378,1744195894480,-500.0,0.00055342,120]
[357582379,1744195894489,-500.0,0.00055342,120]
[357582380,1744195894499,-500.0,0.00055342,120]
[357582381,1744195894509,-500.0,0.00055342,120]
[357582382,1744195894518,-512.04128393,0.00055342,120]
[357582383,1744195894528,-500.0,0.00055342,120]
[357582384,1744195894538,-741.87,0.00055342,120]
[357582385,1744195894547,-500.0,0.00055342,120]
[357582386,1744195894557,-500.0,0.00055342,120]
[357582387,1744195894567,-508.12967013,0.00055342,120]
[357582388,1744195894580,-500.0,0.00055342,120]
[357582389,1744195894590,-17832.27,0.00055342,120]
[357582390,1744195894599,-500.0,0.00055342,120]
[357582391,1744195894609,-537.98410144,0.00055342,120]
[357582392,1744195894618,-575.85,0.00055342,120]
[357582393,1744195894627,-711.96,0.00055342,120]
[357582394,1744195894637,-500.0,0.00055342,120]
[357582395,1744195894646,-500.0,0.00055342,120]
[357582396,1744195894657,-500.0,0.00055342,120]
[357582397,1744195894667,-500.0,0.00055342,120]
[357582398,1744195894676,-1240.73,0.00055342,120]
[357582399,1744195894685,-500.0,0.00055342,120]
[357582400,1744195894694,-1005.53,0.00055342,120]
[357582401,1744195894703,-500.0,0.00055342,120]
[357582402,1744195894712,-500.0,0.00055342,120]
[357582403,1744195894722,-595.77,0.00055342,120]
[357582404,1744195894732,-1000.0,0.00055342,120]
[357582406,1744195894741,-500.0,0.00055342,120]
[357582407,1744195894751,-500.0,0.00055342,120]
[357582408,1744195894761,-500.0,0.00055342,120]
[357582409,1744195894770,-500.0,0.00055342,120]
[357582410,1744195894779,-975.32,0.00055342,120]
[357582411,1744195894788,-763.12,0.00055342,120]
[357582412,1744195894797,-500.0,0.00055342,120]
[357582413,1744195894806,-500.0,0.00055342,120]
[357582414,1744195894816,-641.43,0.00055342,120]
[357582415,1744195894825,-500.0,0.00055342,120]
[357582416,1744195894834,-178.68333928,0.00055342,120]
[357582417,1744195894844,-1009.29,0.00055342,120]
[357582418,1744195894853,-945.59,0.00055342,120]
[357582419,1744195894862,-626.44,0.00055342,120]
[357582420,1744195894871,-500.0,0.00055342,120]
[357582421,1744195894880,-496.49144013,0.00055342,120]
[357582422,1744195894890,-500.0,0.00055342,120]
[357582423,1744195894899,-500.0,0.00055342,120]
[357582424,1744195894908,-500.0,0.00055342,120]
[357582425,1744195894917,-591.48,0.00055342,120]
[357582426,1744195894927,-500.0,0.00055342,120]
[357582427,1744195894936,-500.0,0.00055342,120]
[357582428,1744195894945,-542.462741,0.00055342,120]
[357582429,1744195894954,-672.0,0.00055342,120]
[357582430,1744195894963,-1086.39,0.00055342,120]
[357582431,1744195894972,-1991.35,0.00055342,120]
[357582432,1744195894982,-500.0,0.00055342,120]
[357582433,1744195894991,-500.0,0.00055342,120]
[357582434,1744195895000,-500.0,0.00055342,120]
[357582435,1744195895010,-500.0,0.00055342,120]
[357582436,1744195895019,-500.0,0.00055342,120]
[357582437,1744195895029,-500.0,0.00055342,120]
[357582438,1744195895039,-1104.12,0.00055342,120]
[357582439,1744195895048,-562.22,0.00055342,120]
[357582440,1744195895058,-500.0,0.00055342,120]
[357582442,1744195895068,-500.0,0.00055342,120]
[357582443,1744195895077,-150.0,0.00055425,120]
[357582444,1744195895087,-1224.0,0.00055527,30]
[357582445,1744195895096,-817.68,0.00055616,120]
[357582446,1744195895105,-269.86110312,0.00055616,120]
[357582447,1744195895115,-500.0,0.00055616,120]
[357582448,1744195895124,-500.0,0.00055616,120]
[357582449,1744195895134,-500.0,0.00055616,120]
[357582450,1744195895144,-500.0,0.00055616,120]
[357582451,1744195895153,-500.0,0.00055616,120]
[357582452,1744195895164,-500.0,0.00055616,120]
[357582453,1744195895180,-326.44071212,0.00055616,120]
[357582454,1744195895189,-500.0,0.00055616,120]
[357582455,1744195895199,-260.22237982,0.00055616,120]
[357582456,1744195895208,-500.0,0.00055616,120]
[357582457,1744195895217,-500.0,0.00055616,120]
[357582458,1744195895226,-1449.81,0.00055616,120]
[357582459,1744195895236,-500.0,0.00055616,120]
[357582460,1744195895246,-500.0,0.00055616,38]
[357582461,1744195895256,-500.0,0.00055616,120]
[357582462,1744195895272,-350.18753965,0.00055616,120]
[357582463,1744195895289,-500.0,0.00055616,120]
[357582464,1744195895306,-500.0,0.00055616,120]
[357582465,1744195895325,-736.99,0.00055616,120]
[357582466,1744195895342,-500.0,0.00055616,120]
[357582467,1744195895358,-500.0,0.00055616,120]
[357582468,1744195895376,-500.0,0.00055616,120]
[357582469,1744195895395,-258.03874722,0.00055616,120]
[357582470,1744195895413,-500.0,0.00055616,120]
[357582471,1744195895430,-500.0,0.00055616,120]
[357582472,1744195895447,-494.18520665,0.00055616,120]
[357582473,1744195895464,-341.83859914,0.00055616,120]
[357582474,1744195895479,-500.0,0.00055616,120]
[357582475,1744195895498,-500.0,0.00055616,120]
[357582476,1744195895510,-500.0,0.00055616,120]
[357582477,1744195895526,-500.0,0.00055616,120]
[357582478,1744195895541,-500.0,0.00055616,120]
[357582479,1744195895556,-500.0,0.00055616,120]
[357582480,1744195895572,-500.0,0.00055616,120]
[357582481,1744195895588,-500.0,0.00055616,120]
[357582482,1744195895602,-500.0,0.00055616,120]
[357582483,1744195895619,-500.0,0.00055616,120]
[357582484,1744195895633,-500.0,0.00055616,120]
[357582485,1744195895648,-500.0,0.00055616,120]
[357582486,1744195895664,-500.0,0.00055616,120]
[357582487,1744195895679,-589.46,0.00055616,120]
[357582488,1744195895694,-500.0,0.00055616,120]
[357582489,1744195895708,-500.0,0.00055616,120]
[357582490,1744195895722,-500.0,0.00055616,120]
[357582491,1744195895737,-500.0,0.00055616,120]
[357582492,1744195895751,-506.365178,0.00055616,120]
[357582493,1744195895767,-500.0,0.00055616,120]
[357582494,1744195895782,-631.31,0.00055616,120]
[357582495,1744195895797,-500.0,0.00055616,120]
[357582496,1744195895812,-500.0,0.00055616,120]
[357582497,1744195895826,-601.71,0.00055616,120]
[357582498,1744195895841,-580.58,0.00055616,120]
[357582499,1744195895857,-849.78,0.00055616,10]
[357582500,1744195895873,-500.0,0.00055616,120]
[357582501,1744195895888,-500.0,0.00055616,120]
[357582502,1744195895902,-1298.27,0.00055616,120]
[357582503,1744195895918,-500.0,0.00055616,120]
[357582504,1744195895932,-500.0,0.00055616,120]
[357582505,1744195895946,-500.0,0.00055616,2]
[357582506,1744195895960,-732.88,0.00055616,120]
[357582507,1744195895976,-500.0,0.00055616,120]
[357582508,1744195895991,-1000.0,0.00055616,120]
[357582510,1744195896006,-500.0,0.00055616,120]
[357582511,1744195896022,-500.0,0.00055616,120]
[357582512,1744195896036,-500.0,0.00055616,120]
[357582513,1744195896051,-500.0,0.00055616,120]
[357582514,1744195896067,-500.0,0.00055616,120]
[357582515,1744195896082,-500.0,0.00055616,120]
[357582516,1744195896097,-516.45,0.00055616,30]
[357582517,1744195896111,-500.0,0.00055616,120]
[357582518,1744195896127,-1322.88,0.00055616,120]
[357582519,1744195896142,-500.0,0.00055616,120]
[357582520,1744195896156,-500.0,0.00055616,120]
[357582521,1744195896171,-500.0,0.00055616,120]
[357582522,1744195896185,-573.03,0.00055616,120]
[357582523,1744195896200,-500.0,0.00055616,2]
[357582524,1744195896214,-173.74562429,0.00055616,120]
[357582525,1744195896230,-1084.65,0.00055616,120]
[357582526,1744195896244,-500.0,0.00055616,120]
[357582527,1744195896260,-500.0,0.00055616,120]
[357582528,1744195896275,-709.17,0.00055616,120]
[357582529,1744195896288,-500.0,0.00055616,120]
[357582530,1744195896303,-500.0,0.00055616,120]
[357582532,1744195896319,-623.56,0.00055616,120]
[357582533,1744195896332,-500.0,0.00055616,120]
[357582534,1744195896347,-500.0,0.00055616,120]
[357582535,1744195896361,-500.0,0.00055616,120]
[357582536,1744195896380,-558.47,0.00055616,120]
[357582537,1744195896395,-371.45796455,0.00055616,120]
[357582538,1744195896410,-500.0,0.00055616,120]
[357582539,1744195896424,-500.0,0.00055616,120]
[357582540,1744195896438,-2749.74,0.00055616,120]
[357582541,1744195896453,-500.0,0.00055616,120]
[357582542,1744195896469,-500.0,0.00055616,120]
[357582543,1744195896484,-2000.0,0.00055616,2]
[357582544,1744195896499,-677.59,0.00055616,120]
[357582545,1744195896513,-500.0,0.00055616,120]
[357582546,1744195896528,-500.0,0.00055616,120]
[357582547,1744195896543,-500.0,0.00055616,120]
[357582548,1744195896559,-500.0,0.00055616,120]
[357582549,1744195896575,-500.0,0.00055616,120]
[357582550,1744195896590,-500.0,0.00055616,120]
[357582551,1744195896606,-500.0,0.00055616,30]
[357582552,1744195896621,-603.24641971,0.00055616,120]
[357582553,1744195896636,-500.0,0.00055616,120]
[357582555,1744195896651,-284.87623066,0.00055616,120]
[357582556,1744195896667,-500.0,0.00055616,120]
[357582557,1744195896681,-500.0,0.00055616,120]
[357582558,1744195896696,-500.0,0.00055616,120]
[357582559,1744195896710,-500.0,0.00055616,120]
[357582560,1744195896725,-678.03,0.00055616,120]
[357582561,1744195896741,-994.85,0.00055616,120]
[357582562,1744195896756,-500.0,0.00055616,120]
[357582563,1744195896772,-631.36,0.00055616,120]
[357582564,1744195896786,-500.0,0.00055616,120]
[357582565,1744195896802,-500.0,0.00055616,120]
[357582566,1744195896817,-500.0,0.00055616,120]
[357582567,1744195896833,-500.0,0.00055616,120]
[357582568,1744195896848,-500.0,0.00055616,120]
[357582569,1744195896864,-163.61594969,0.00055616,120]
[357582570,1744195896878,-526.9,0.00055616,120]
[357582571,1744195896892,-500.0,0.00055616,120]
[357582572,1744195896906,-500.0,0.00055616,120]
[357582573,1744195896921,-500.0,0.00055616,120]
[357582574,1744195896936,-500.0,0.00055616,120]
[357582575,1744195896949,-500.0,0.00055616,120]
[357582577,1744195896959,-500.0,0.00055616,120]
[357582578,1744195896969,-500.0,0.00055616,120]
[357582579,1744195896977,-698.98,0.00055616,120]
[357582580,1744195896987,-601.71,0.00055616,120]
[357582581,1744195896996,-500.0,0.00055616,120]
[357582582,1744195897005,-500.0,0.00055616,120]
[357582583,1744195897015,-500.0,0.00055616,120]
[357582584,1744195897024,-500.0,0.00055616,120]
[357582585,1744195897341,-303.97942647,0.00055616,120]
[357582586,1744195897363,-500.0,0.00055616,120]
[357582587,1744195897372,-604.32431513,0.00055616,120]
[357582588,1744195897381,-538.27,0.00055616,120]
[357582589,1744195897390,-500.0,0.00055616,120]
[357582590,1744195897399,-500.0,0.00055616,120]
[357582591,1744195897408,-500.0,0.00055616,120]
[357582592,1744195897417,-500.0,0.00055616,120]
[357582594,1744195897427,-500.0,0.00055616,120]
[357582595,1744195897436,-500.0,0.00055616,120]
[357582596,1744195897445,-500.0,0.00055616,90]
[357582597,1744195897454,-500.0,0.00055616,120]
[357582598,1744195897463,-500.0,0.00055616,120]
[357582599,1744195897472,-500.0,0.00055616,120]
[357582600,1744195897481,-500.0,0.00055616,120]
[357582601,1744195897491,-500.0,0.00055616,120]
[357582602,1744195897501,-500.0,0.00055616,120]
[357582603,1744195897510,-214.40392316,0.00055616,120]
[357582604,1744195897519,-828.9,0.00055616,120]
[357582605,1744195897528,-3108.85,0.00055616,120]
[357582606,1744195897537,-500.0,0.00055616,120]
[357582607,1744195897546,-824.44,0.00055616,120]
[357582608,1744195897555,-515.16,0.00055616,120]
[357582609,1744195897564,-500.0,0.00055616,120]
[357582610,1744195897575,-500.0,0.00055616,120]
[357582611,1744195897585,-500.0,0.00055616,120]
[357582612,1744195897594,-500.0,0.00055616,120]
[357582613,1744195897603,-500.0,0.00055616,120]
[357582614,1744195897612,-500.0,0.00055616,120]
[357582615,1744195897623,-343.78832954,0.00055616,120]
[357582616,1744195897632,-500.0,0.00055616,120]
[357582617,1744195897641,-500.0,0.00055616,120]
[357582618,1744195897651,-500.0,0.00055616,120]
[357582619,1744195897660,-500.0,0.00055616,120]
[357582620,1744195897669,-1859.51,0.00055616,120]
[357582621,1744195897679,-500.0,0.00055616,120]
[357582622,1744195897688,-500.0,0.00055616,120]
[357582623,1744195897698,-500.0,0.00055616,120]
[357582624,1744195897707,-500.0,0.00055616,120]
[357582625,1744195897716,-500.0,0.00055616,120]
[357582626,1744195897726,-517.36,0.00055616,120]
[357582627,1744195897735,-941.44,0.00055616,120]
[357582628,1744195897745,-500.0,0.00055616,120]
[357582629,1744195897756,-585.91,0.00055616,120]
[357582630,1744195897765,-833.33,0.00055616,120]
[357582632,1744195897775,-500.0,0.00055616,120]
[357582633,1744195897785,-500.0,0.00055616,120]
[357582634,1744195897794,-500.0,0.00055616,120]
[357582635,1744195897804,-500.0,0.00055616,120]
[357582636,1744195897814,-604.98,0.00055616,120]
[357582637,1744195897824,-500.0,0.00055616,120]
[357582638,1744195897833,-540.48,0.00055616,120]
[357582639,1744195897842,-500.0,0.00055616,120]
[357582640,1744195897851,-500.0,0.00055616,120]
[357582641,1744195897860,-516.58,0.00055616,120]
[357582642,1744195897869,-522.33,0.00055616,120]
[357582643,1744195897878,-500.0,0.00055616,120]
[357582644,1744195897888,-500.0,0.00055616,120]
[357582645,1744195897897,-599.74,0.00055616,120]
[357582646,1744195897906,-555.71,0.00055616,120]
[357582647,1744195897915,-670.8,0.00055616,120]
[357582648,1744195897924,-750.9,0.00055616,120]
[357582649,1744195897933,-500.0,0.00055616,120]
[357582650,1744195897943,-379.91675173,0.00055616,120]
[357582656,1744196223620,177.0,0.00032,120]
[357582657,1744196242534,-200.0,0.00018725,2]
[357582658,1744196242561,-750.0,0.00019897,2]
[357582659,1744196312389,200.0,0.00032,120]
[357582663,1744196803121,-250.0,0.00019,2]
[357582664,1744196803143,-250.0,0.00019897,2]
[357582665,1744196803164,-300.0,0.00021,2]
[357582666,1744196803186,-150.0,0.00021917,2]
[357582667,1744196803207,-350.0,0.00023,2]
[357582668,1744196803228,-165.05,0.00023287,2]
[357582669,1744196803249,-400.0,0.00025,2]
[357582670,1744196803270,-157.86,0.00026849,2]
[357582671,1744196803295,-500.0,0.00032876,120]
[357582672,1744196803317,-500.0,0.00032876,120]
[357582673,1744196803339,-500.0,0.00032876,120]
[357582674,1744196803362,-189.70874149,0.00032876,120]
[357582675,1744196803391,-200.0,0.000339,120]
[357582676,1744196803414,-200.0,0.00035,120]
[357582677,1744196803435,-200.0,0.00039,120]
[357582678,1744196803457,-138.48064421,0.00039872,2]
[357582686,1744197031661,-245.74300636,0.00039899,2]
[357582687,1744197031671,-172.0,0.00039999,2]
[357582688,1744197031681,-172.01570381,0.00039999,2]
[357582689,1744197031691,-150.13,0.00039999,2]
[357582690,1744197031701,-150.13,0.00039999,2]
[357582691,1744197031711,-500.0,0.00040398,5]
[357582692,1744197031720,-173.95,0.00040399,2]
[357582693,1744197031730,-245.74300635,0.00040434,2]
[357582694,1744197031739,-245.74300635,0.00040968,2]
[357582695,1744197031749,-200.0,0.00041,120]
[357582696,1744197031758,-245.74300635,0.00041503,2]
[357582697,1744197031768,-171.9,0.00042032,2]
[357582698,1744197031778,-245.74300635,0.00042037,2]
[357582699,1744197031787,-161.23,0.00042105,2]
[357582700,1744197031797,-250.0,0.00042316,2]
[357582701,1744197031806,-200.0,0.00042316,2]
[357582702,1744197031816,-245.74300635,0.00042572,2]
[357582703,1744197031827,-157.86,0.00042583,2]
[357582704,1744197031836,-173.95,0.00042662,2]
[357582705,1744197031846,-3542.87625808,0.00042672,30]
[357582706,1744197031858,-7038.93715779,0.00042672,30]
[357582707,1744197031867,-239.75207017,0.00042672,30]
[357582708,1744197031876,-202.95096082,0.00042672,30]
[357582709,1744197031886,-1000.0,0.00042672,2]
[357582710,1744197031895,-733.4,0.00042672,2]
[357582711,1744197031905,-299.99,0.00042672,120]
[357582712,1744197031918,-331.93,0.00042672,30]
[357582713,1744197031928,-165.29,0.00042791,2]
[357582714,1744197031937,-3124.83,0.00042819,2]
[357582715,1744197031946,-203.18494881,0.00043513,2]
[357582716,1744197031957,-200.0,0.00043581,7]
[357582717,1744197031966,-183.05,0.00043835,120]
[357582718,1744197031976,-150.0,0.00043854,4]
[357582719,1744197031985,-23900.0,0.00043855,2]
[357582720,1744197031999,-2388.306,0.00043899,69]
[357582721,1744197032013,-173.188,0.00043899,69]
[357582722,1744197032026,-213.14,0.000439,36]
[357582723,1744197032038,-213.14,0.000439,36]
[357582724,1744197032048,-213.14,0.000439,36]
[357582725,1744197032058,-213.14,0.000439,36]
[357582726,1744197032068,-213.14,0.000439,36]
[357582727,1744197032083,-213.14,0.000439,36]
[357582729,1744197032094,-213.14,0.000439,36]
[357582731,1744197032106,-213.14,0.000439,36]
[357582733,1744197032118,-213.14,0.000439,36]
[357582734,1744197032130,-213.14,0.000439,36]
[357582736,1744197032142,-213.14,0.000439,36]
[357582738,1744197032155,-213.14,0.000439,36]
[357582740,1744197032166,-159.56,0.00043921,30]
[357582743,1744197032179,-200.0,0.00044,120]
[357582745,1744197032191,-586.01272513,0.00044,4]
[357582746,1744197032202,-223.33,0.000441,2]
[357582747,1744197032213,-700.0,0.00044221,16]
[357582748,1744197032224,-700.0,0.00044221,16]
[357582749,1744197032234,-700.0,0.00044221,16]
[357582750,1744197032246,-700.0,0.00044221,16]
[357582751,1744197032258,-700.0,0.00044221,16]
[357582752,1744197032270,-700.0,0.00044221,16]
[357582753,1744197032282,-700.0,0.00044221,16]
[357582754,1744197032295,-700.0,0.00044221,16]
[357582755,1744197032307,-700.0,0.00044221,16]
[357582756,1744197032319,-700.0,0.00044221,16]
[357582757,1744197032336,-2500.0,0.00044292,2]
[357582758,1744197032349,-1000.0,0.00044292,2]
[357582759,1744197032362,-500.0,0.00044391,120]
[357582760,1744197032374,-500.0,0.00044391,120]
[357582761,1744197032387,-500.0,0.00044391,120]
[357582762,1744197032400,-500.0,0.00044391,120]
[357582763,1744197032412,-500.0,0.00044391,120]
[357582764,1744197032424,-500.0,0.00044391,120]
[357582765,1744197032435,-500.0,0.00044391,120]
[357582766,1744197032448,-590.83969365,0.00044391,120]
[357582767,1744197032459,-500.0,0.00044391,120]
[357582768,1744197032470,-500.0,0.00044391,120]
[357582769,1744197032484,-500.0,0.00044391,120]
[357582770,1744197032495,-500.0,0.00044391,120]
[357582771,1744197032507,-500.0,0.00044391,120]
[357582772,1744197032519,-1973.17899646,0.00044528,16]
[357582773,1744197032532,-304.2715,0.00044563,2]
[357582774,1744197032545,-12500.0,0.00044566,10]
[357582775,1744197032556,-12500.0,0.00044575,10]
[357582776,1744197032567,-12500.0,0.00044584,10]
[357582777,1744197032582,-1254.6093,0.0004459,2]
[357582778,1744197032592,-12500.0,0.00044593,10]
[357582779,1744197032603,-12500.0,0.00044602,10]
[357582780,1744197032613,-12500.0,0.0004461,10]
[357582781,1744197032623,-12500.0,0.00044619,10]
[357582782,1744197032634,-12500.0,0.00044628,10]
[357582783,1744197032644,-12500.0,0.00044637,10]
[357582784,1744197032657,-12500.0,0.00044646,10]
[357582785,1744197032670,-12500.0,0.00044654,10]
[357582786,1744197032682,-12500.0,0.00044663,10]
[357582787,1744197032692,-12500.0,0.00044672,10]
[357582788,1744197032702,-12500.0,0.00044681,10]
[357582789,1744197032712,-12500.0,0.0004469,10]
[357582790,1744197032722,-12500.0,0.00044698,10]
[357582791,1744197032734,-12500.0,0.00044707,10]
[357582792,1744197032745,-12500.0,0.00044716,10]
[357582793,1744197032757,-152.0,0.00044873,3]
[357582794,1744197032769,-173.95,0.00044926,2]
[357582795,1744197032779,-161.23,0.00045158,2]
[357582796,1744197032789,-1470.82,0.00045714,2]
[357582797,1744197032799,-2000.0,0.00045714,120]
[357582798,1744197032809,-1470.82,0.00045726,2]
[357582799,1744197032820,-1470.82,0.00045738,2]
[357582800,1744197032831,-1470.82,0.0004575,2]
[357582801,1744197032842,-1470.82,0.00045762,2]
[357582802,1744197032852,-1027.62,0.00045768,120]
[357582803,1744197032862,-1470.82,0.00045774,2]
[357582804,1744197032877,-1470.82,0.00045786,2]
[357582805,1744197032887,-1470.82,0.00045798,2]
[357582806,1744197032899,-1470.82,0.0004581,2]
[357582807,1744197032910,-1470.82,0.00045822,2]
[357582808,1744197032922,-1084.76,0.00045833,2]
[357582809,1744197032932,-1470.82,0.00045834,2]
[357582810,1744197032944,-1470.82,0.00045846,2]
[357582811,1744197032955,-1470.82,0.00045858,2]
[357582812,1744197032966,-1470.82,0.0004587,2]
[357582813,1744197032976,-1470.82,0.00045882,2]
[357582814,1744197032987,-14451.5217997,0.00045884,3]
[357582815,1744197032997,-1470.82,0.00045894,2]
[357582816,1744197033008,-1470.82,0.00045906,2]
[357582817,1744197033018,-1470.82,0.00045918,2]
[357582818,1744197033029,-1470.82,0.0004593,2]
[357582819,1744197033041,-1470.82,0.00045942,2]
[357582820,1744197033052,-156.0,0.00046,120]
[357582821,1744197033063,-1123.0,0.000463,2]
[357582822,1744197033076,-3028.0,0.00046373,7]
[357582823,1744197033087,-152.78039265,0.0004646,10]
[357582824,1744197033098,-152.0,0.00046525,4]
[357582825,1744197033110,-213.14,0.000467,42]
[357582826,1744197033122,-213.14,0.000467,42]
[357582827,1744197033133,-213.14,0.000467,42]
[357582828,1744197033144,-213.14,0.000467,42]
[357582829,1744197033157,-213.14,0.000467,42]
[357582830,1744197033170,-213.14,0.000467,42]
[357582831,1744197033182,-213.14,0.000467,42]
[357582832,1744197033193,-213.14,0.000467,42]
[357582833,1744197033204,-213.14,0.000467,42]
[357582834,1744197033215,-213.14,0.000467,42]
[357582835,1744197033227,-213.14,0.000467,42]
[357582836,1744197033238,-213.14,0.000467,42]
[357582837,1744197033251,-213.14,0.000467,42]
[357582838,1744197033262,-213.14,0.000467,42]
[357582839,1744197033274,-213.14,0.000467,42]
[357582840,1744197033285,-213.14,0.000467,42]
[357582841,1744197033296,-213.14,0.000467,42]
[357582842,1744197033307,-213.14,0.000467,42]
[357582843,1744197033318,-213.14,0.000467,42]
[357582844,1744197033333,-213.14,0.000467,42]
[357582845,1744197033344,-213.14,0.000467,42]
[357582846,1744197033355,-213.14,0.000467,42]
[357582847,1744197033367,-213.14,0.000467,42]
[357582848,1744197033378,-213.14,0.000467,42]
[357582849,1744197033390,-14451.5217997,0.0004683,3]
[357582850,1744197033401,-12500.0,0.0004684,10]
[357582851,1744197033413,-7224.56465512,0.00046849,10]
[357582852,1744197033451,-5275.43534488,0.00046849,10]
[357582853,1744197033462,-3199.6535,0.00046888,30]
[357582854,1744197033473,-500.0,0.00046975,10]
[357582855,1744197033486,-162.36,0.00047085,2]
[357582856,1744197033497,-173.95,0.0004719,2]
[357582857,1744197033508,-166.54365213,0.0004755,10]
[357582858,1744197033519,-200.0,0.00048,120]
[357582859,1744197033530,-1000.0,0.00048006,2]
[357582860,1744197033541,-152.0,0.00048178,5]
[357582861,1744197033552,-161.23,0.0004821,2]
[357582862,1744197033563,-670.01,0.000488,7]
[357582863,1744197033575,-1123.47849292,0.00049,2]
[357582864,1744197033587,-28903.0435994,0.00049305,4]
[357582865,1744197033598,-500.0,0.00049315,120]
[357582866,1744197033610,-500.0,0.00049315,120]
[357582867,1744197033622,-500.0,0.00049315,120]
[357582868,1744197033633,-500.0,0.00049315,120]
[357582869,1744197033645,-500.0,0.00049315,120]
[357582870,1744197033656,-500.0,0.00049315,120]
[357582871,1744197033667,-500.0,0.00049315,120]
[357582872,1744197033678,-500.0,0.00049315,120]
[357582873,1744197033689,-500.0,0.00049315,120]
[357582874,1744197033700,-500.0,0.00049315,120]
[357582875,1744197033712,-500.0,0.00049315,120]
[357582876,1744197033723,-500.0,0.00049315,120]
[357582877,1744197033735,-500.0,0.00049315,120]
[357582878,1744197033746,-500.0,0.00049315,120]
[357582879,1744197033758,-500.0,0.00049315,120]
[357582880,1744197033769,-500.0,0.00049315,120]
[357582881,1744197033781,-500.0,0.00049315,120]
[357582882,1744197033791,-500.0,0.00049315,120]
[357582883,1744197033803,-258.56562322,0.00049315,120]
[357582884,1744197033830,-241.43437678,0.00049315,120]
[357582885,1744197033842,-500.0,0.00049315,120]
[357582886,1744197033852,-500.0,0.00049315,120]
[357582887,1744197033864,-500.0,0.00049315,120]
[357582888,1744197033876,-500.0,0.00049315,120]
[357582889,1744197033887,-500.0,0.00049315,120]
[357582890,1744197033900,-500.0,0.00049315,120]
[357582891,1744197033912,-500.0,0.00049315,120]
[357582892,1744197033923,-500.0,0.00049315,120]
[357582893,1744197033934,-500.0,0.00049315,120]
[357582894,1744197033947,-323.04555084,0.00049315,120]
[357582895,1744197034022,-176.95444916,0.00049315,120]
[357582896,1744197034033,-417.27766216,0.00049315,120]
[357582912,1744197037962,-716.1711306,0.00039899,2]
[357582913,1744197037971,-228.27334898,0.00044208,16]
[357582914,1744197038033,-471.72665102,0.00044208,16]
[357582915,1744197038043,-700.0,0.00044208,16]
[357582916,1744197038053,-700.0,0.00044208,16]
[357582917,1744197038063,-700.0,0.00044208,16]
[357582918,1744197038072,-700.0,0.00044208,16]
[357582919,1744197038082,-500.0,0.00044715,120]
[357582920,1744197038091,-500.0,0.00044715,120]